bitfinex/quotes_ETHUSD_20251128
["timestamp","ask_amount","ask_price","bid_price","bid_amount"]
[1764314055098,0.31058397,3018.2,3018.1,10.87663848]
[1764314055579,0.31058397,3018.2,3018.1,6.13122517]
[1764314055768,0.31058397,3018.2,3018.1,9.27785025]
[1764314065374,0.31058397,3018.2,3018.1,8.78535025]
[1764314068905,0.31058397,3018.2,3018.1,9.27915025]
[1764314069877,0.31058397,3018.2,3018.1,8.78535025]
[1764314076314,0.31058397,3018.2,3018.1,9.27915025]
[1764314081814,0.31058397,3018.2,3018.1,8.78535025]
[1764314085329,1.27028397,3018.2,3018.1,8.78535025]
[1764314085718,1.27028397,3018.2,3018.1,0.93559411]
[1764314085892,1.72901503,3018.2,3018.1,0.93559411]
[1764314087004,1.27028397,3018.2,3018.1,0.72659411]
[1764314087207,1.27028397,3018.2,3018.1,0.93559411]
[1764314088808,1.27028397,3018.2,3018.1,4.24893694]
[1764314089525,1.27028397,3018.2,3018.1,0.93559411]
[1764314090724,1.27028397,3018.2,3018.1,4.03993694]
[1764314090905,1.27028397,3018.2,3018.1,4.24893694]
[1764314095427,1.27028397,3018.2,3018.1,0.93559411]
[1764314095953,1.27028397,3018.2,3018.1,4.24893694]
[1764314098254,1.27028397,3018.2,3018.1,4.03993694]
[1764314098436,1.27028397,3018.2,3018.1,4.24893694]
[1764314101459,1.27028397,3018.2,3018.1,4.03993694]
[1764314101645,1.27028397,3018.2,3018.1,0.93559411]
[1764314103067,1.27035715,3018.2,3018.1,0.93559411]
[1764314103269,1.27035715,3018.2,3018.1,4.24893694]
[1764314103572,1.27035715,3018.2,3018.1,4.03993694]
[1764314103768,1.27035715,3018.2,3018.1,4.24893694]
[1764314104668,0.9597,3018.2,3018.1,4.24893694]
[1764314104877,1.27035498,3018.2,3018.1,4.24893694]
[1764314106279,1.27035498,3018.2,3018.1,4.03993694]
[1764314106445,1.27035498,3018.2,3018.1,4.24893694]
[1764314106976,1.27035498,3018.2,3018.1,0.93559411]
[1764314108567,1.27035498,3018.2,3018.1,4.24893694]
[1764314109775,1.27035498,3018.2,3018.1,0.93559411]
[1764314111074,1.27035498,3018.2,3018.1,4.24893694]
[1764314111277,1.27035498,3018.2,3018.1,0.72659411]
[1764314111574,1.49731822,3018.2,3018.1,0.72659411]
[1764314112152,1.49731822,3018.2,3018.1,0.001]
[1764314112572,4.81055127,3018.2,3018.1,0.001]
[1764314112777,6.85260762,3018.2,3018.1,0.001]
[1764314115263,7.25811162,3018.2,3018.1,0.001]
[1764314115465,6.521927,3018.2,3018.1,0.001]
[1764314117584,5.80590462,3018.2,3018.1,0.001]
[1764314117958,5.80529869,3018.2,3018.1,0.001]
[1764314128386,5.76429869,3018.2,3018.1,0.001]
[1764314128575,2.45106564,3018.2,3018.1,0.001]
[1764314129705,5.76429869,3018.2,3018.1,0.001]
[1764314130684,2.45106564,3018.2,3018.1,0.001]
[1764314130899,2.22390017,3018.2,3018.1,0.001]
[1764314132509,1.76510017,3018.2,3018.1,0.001]
[1764314135582,2.22390017,3018.2,3018.1,0.001]
[1764314137406,2.22414388,3018.2,3018.1,0.001]
[1764314146293,1.76534388,3018.2,3018.1,0.001]
[1764314146498,1.30544388,3018.2,3018.1,0.001]
[1764314146898,1.30544388,3018.2,3018.1,0.4585]
[1764314148722,1.30544388,3018.2,3018.1,0.001]
[1764314151291,0.31009053,3018.2,3018.1,1.93848869]
[1764314151519,0.002,3018.3,3018.1,2.52998869]
[1764314151721,0.002,3018.3,3018.2,5.69542951]
[1764314152037,0.002,3018.3,3018.2,6.52102362]
[1764314152406,0.002,3018.3,3018.2,6.65371142]
[1764314152606,0.002,3018.3,3018.2,8.05741187]
[1764314152927,0.002,3018.3,3018.2,11.37064492]
[1764314154625,0.002,3018.3,3018.2,11.36849413]
[1764314157231,0.002,3018.3,3018.2,11.26849413]
[1764314157430,0.002,3018.3,3018.2,11.36849413]
[1764314157930,0.002,3018.3,3018.2,10.98599413]
[1764314158307,0.002,3018.3,3018.2,11.47749413]
[1764314159439,0.002,3018.3,3018.2,6.03271541]
[1764314159737,0.002,3018.3,3018.2,6.10902761]
[1764314160537,0.002,3018.3,3018.2,5.3834335]
[1764314161922,0.002,3018.3,3018.2,5.8834335]
[1764314162124,0.002,3018.3,3018.2,5.4259335]
[1764314162534,0.002,3018.3,3018.2,4.02223305]
[1764314162535,0.4854,3018.3,3018.2,4.02223305]
[1764314163617,0.002,3018.3,3018.2,4.02223305]
[1764314165744,0.4854,3018.3,3018.2,3.81323305]
[1764314165946,0.4854,3018.3,3018.2,4.02223305]
[1764314166344,0.965,3018.3,3018.2,0.5]
[1764314168758,0.4854,3018.3,3018.2,0.5]
[1764314168963,0.965,3018.3,3018.2,0.5]
[1764314171568,1.27501735,3018.3,3018.2,0.5]
[1764314173765,1.26991735,3018.3,3018.2,0.5]
[1764314174264,1.26991735,3018.3,3018.1,0.001]
[1764314174462,1.11261735,3018.2,3018.1,0.001]
[1764314176067,1.11261735,3018.2,3018.1,0.501]
[1764314178202,0.31001735,3018.2,3018.1,9.21092155]
[1764314178394,0.002,3018.3,3018.1,13.10296438]
[1764314178547,0.002,3018.3,3018.2,2.27679644]
[1764314180374,0.002,3018.3,3018.2,5.59002949]
[1764314184279,0.002,3018.3,3018.2,5.62316182]
[1764314185498,0.002,3018.3,3018.2,5.59002949]
[1764314185680,0.002,3018.3,3018.2,5.11132949]
[1764314186053,0.002,3018.3,3018.2,6.34875593]
[1764314186254,0.002,3018.3,3018.2,6.4156236]
[1764314194996,0.002,3018.3,3018.2,5.8369236]
[1764314195200,0.002,3018.3,3018.2,6.6246236]
[1764314196364,0.002,3018.5,3018.2,6.6246236]
[1764314196571,3.50014816,3019.2,3018.7,4.74427872]
[1764314196796,0.31005734,3019.1,3018.8,0.209]
[1764314197108,0.31005734,3019.0,3018.8,0.209]
[1764314197400,0.78705734,3018.9,3018.8,0.209]
[1764314197576,0.78705734,3018.9,3018.8,4.95327872]
[1764314198501,1.11525734,3018.9,3018.8,4.95327872]
[1764314199369,1.11525734,3018.9,3018.8,8.26585325]
[1764314200596,0.78705734,3018.9,3018.8,4.95327872]
[1764314200890,1.11525734,3018.9,3018.8,4.95327872]
[1764314201093,1.11525734,3018.9,3018.8,8.26585325]
[1764314201402,1.11525734,3018.9,3018.8,4.95327872]
[1764314201606,1.11525734,3018.9,3018.8,8.26585325]
[1764314202205,1.11525734,3018.9,3018.8,4.95327872]
[1764314203682,1.11525734,3018.9,3018.8,4.95427872]
[1764314205609,1.11525734,3018.9,3018.8,4.74527872]
[1764314205906,1.11525734,3018.9,3018.8,4.95427872]
[1764314208389,1.11525734,3018.9,3018.8,8.26685325]
[1764314209313,1.11525734,3018.9,3018.8,4.95427872]
[1764314211011,0.78705734,3018.9,3018.8,4.95427872]
[1764314211314,0.78705734,3018.9,3018.8,8.26685325]
[1764314215339,0.31005734,3018.9,3018.8,9.88521797]
[1764314215626,0.31005734,3018.9,3018.8,10.35171797]
[1764314216320,0.31005734,3018.9,3018.8,9.67621797]
[1764314216492,0.31005734,3018.9,3018.8,5.14093925]
[1764314216701,0.31005734,3018.9,3018.8,3.98297453]
[1764314220523,0.62775734,3018.9,3018.8,3.52257453]
[1764314221123,0.31005734,3018.9,3018.8,3.98297453]
[1764314224399,0.31005734,3018.9,3018.8,4.44947453]
[1764314225034,0.31048855,3018.9,3018.8,4.44947453]
[1764314226224,1.10378855,3018.9,3018.8,3.52257453]
[1764314226431,0.62818855,3018.9,3018.8,3.52257453]
[1764314231854,0.31048855,3018.9,3018.8,4.01767453]
[1764314232156,0.31048855,3018.9,3018.8,4.05080027]
[1764314233429,0.31048855,3018.9,3018.8,5.94249876]
[1764314235253,0.31048855,3018.9,3018.8,5.73349876]
[1764314235462,0.31048855,3018.9,3018.8,5.94249876]
[1764314238847,0.31048855,3018.9,3018.8,6.44249876]
[1764314239480,0.31048855,3018.9,3018.8,7.06809287]
[1764314239774,0.002,3019.2,3018.9,0.72559411]
[1764314239979,0.002,3019.2,3019.1,1.18589411]
[1764314240163,0.31249017,3019.2,3019.1,1.28589411]
[1764314240348,0.31249017,3019.2,3019.1,1.76919411]
[1764314240680,0.31246536,3019.2,3019.1,1.76919411]
[1764314241655,0.31246536,3019.2,3019.1,5.29043948]
[1764314241855,0.31246536,3019.2,3019.1,6.3898783]
[1764314242055,0.002,3019.2,3019.1,11.51539023]
[1764314242242,0.002,3019.2,3019.1,11.72439023]
[1764314242449,0.002,3019.2,3019.1,12.71910003]
[1764314244379,0.002,3019.6,3019.5,5.97470604]
[1764314244551,0.002,3019.6,3019.5,7.24147664]
[1764314244751,0.002,3019.6,3019.5,7.72477664]
[1764314244973,0.002,3019.6,3019.5,8.21127664]
[1764314245979,0.8104,3019.6,3019.5,0.4865]
[1764314246154,0.4576,3019.6,3019.4,0.209]
[1764314246560,0.4576,3019.6,3019.4,0.6955]
[1764314247362,0.4576,3019.6,3019.5,4.74360793]
[1764314248390,0.4576,3019.6,3019.5,8.05541452]
[1764314249585,0.8104,3019.6,3019.5,4.95260793]
[1764314249776,0.8104,3019.6,3019.5,8.26441452]
[1764314250350,0.8104,3019.6,3019.5,4.95260793]
[1764314250780,0.8104,3019.6,3019.1,0.72559411]
[1764314250955,0.4865,3019.5,3019.3,0.72559411]
[1764314251151,0.3221,3019.4,3019.3,0.72559411]
[1764314251357,0.3221,3019.4,3019.3,0.93459411]
[1764314251552,0.807,3019.4,3019.3,0.93459411]
[1764314252360,0.807,3019.4,3019.3,4.27974032]
[1764314254686,0.807,3019.4,3019.3,4.27691112]
[1764314255297,0.809,3019.4,3019.3,4.27691112]
[1764314255862,0.809,3019.4,3019.3,4.24379087]
[1764314256463,0.809,3019.4,3019.3,4.74379087]
[1764314257298,0.809,3019.4,3019.3,4.77691112]
[1764314258172,0.002,3019.4,3019.3,5.72051112]
[1764314258367,0.4576,3019.4,3019.3,4.74379087]
[1764314262893,0.8104,3019.4,3019.3,4.53479087]
[1764314263262,0.8104,3019.4,3019.3,4.74379087]
[1764314263992,0.8104,3019.4,3019.3,4.53479087]
[1764314264169,0.8104,3019.4,3019.3,4.74379087]
[1764314265702,0.8104,3019.4,3019.3,1.22276491]
[1764314265994,0.8104,3019.4,3019.3,0.5]
[1764314266182,1.12039187,3019.4,3019.3,0.5]
[1764314266495,1.66331542,3019.4,3019.3,0.5]
[1764314267494,2.16331542,3019.4,3019.3,0.5]
[1764314271396,5.47523169,3019.4,3019.3,0.5]
[1764314271829,5.47523169,3019.4,3019.0,0.001]
[1764314272095,0.3187,3019.1,3019.0,0.001]
[1764314272302,0.62869187,3019.1,3019.0,0.001]
[1764314272482,1.11699187,3019.1,3019.0,0.001]
[1764314274483,1.5807946,3019.1,3019.0,0.001]
[1764314275494,1.11699187,3019.1,3019.0,0.001]
[1764314277273,1.1170856,3019.1,3019.0,0.001]
[1764314280713,4.42933097,3019.1,3019.0,0.001]
[1764314280895,4.63833097,3019.1,3019.0,0.001]
[1764314281095,10.7367015,3019.1,3019.0,0.001]
[1764314281296,12.14159058,3019.1,3019.0,0.001]
[1764314281479,12.86718469,3019.1,3019.0,0.001]
[1764314281676,13.27271077,3019.1,3019.0,0.001]
[1764314283018,13.27271077,3019.1,3018.7,0.001]
[1764314283019,0.405504,3018.9,3018.7,0.001]
[1764314283225,12.41042465,3018.8,3018.7,0.001]
[1764314283520,5.87514644,3018.5,3018.4,0.001]
[1764314283728,7.53957632,3018.5,3018.4,0.001]
[1764314283935,8.36387632,3018.5,3018.4,0.001]
[1764314284230,8.49661079,3018.5,3018.4,0.001]
[1764314284415,3.61982799,3018.5,3018.4,0.001]
[1764314284597,4.45621562,3018.5,3018.4,0.001]
[1764314285296,7.76911938,3018.5,3018.4,0.001]
[1764314286092,6.9544778,3018.5,3018.4,0.001]
[1764314287097,7.0544778,3018.5,3018.4,0.001]
[1764314289431,6.9544778,3018.5,3018.4,0.001]
[1764314292948,6.21829318,3018.5,3018.4,0.001]
[1764314293643,6.5489738,3018.5,3018.4,0.001]
[1764314294552,5.15689907,3018.5,3018.4,0.4709]
[1764314294701,3.83201144,3018.5,3018.4,0.4709]
[1764314295150,0.51910768,3018.5,3018.4,0.4709]
[1764314295658,3.83201144,3018.5,3018.4,0.4709]
[1764314306857,3.83201144,3018.5,3018.4,0.955]
[1764314307049,0.31010768,3018.5,3018.4,0.4709]
[1764314307352,0.31010768,3018.5,3018.4,0.955]
[1764314307728,0.31010768,3018.5,3018.4,1.87488844]
[1764314308252,0.31010768,3018.5,3018.4,5.18790195]
[1764314309045,0.002,3018.7,3018.4,5.18790195]
[1764314309247,0.002,3018.7,3018.6,5.21394833]
[1764314309566,0.3119062,3018.7,3018.6,5.31394833]
[1764314309731,0.3119062,3018.7,3018.6,5.79804833]
[1764314310741,0.3119062,3018.7,3018.6,0.954]
[1764314313232,0.002,3018.7,3018.6,0.954]
[1764314313641,0.002,3018.7,3018.6,5.69804833]
[1764314315247,0.002,3018.7,3018.6,0.954]
[1764314317637,0.002,3018.7,3018.6,4.26679401]
[1764314318632,0.002,3018.7,3018.6,4.29992195]
[1764314319138,0.002,3018.7,3018.6,4.39992195]
[1764314321570,0.002,3018.7,3018.6,0.954]
[1764314324267,0.6620034,3018.7,3018.4,0.001]
[1764314324472,0.3469,3018.5,3018.4,0.001]
[1764314324667,1.1310094,3018.5,3018.4,0.001]
[1764314326367,4.44391316,3018.5,3018.4,0.001]
[1764314326570,5.21978445,3018.5,3018.4,0.001]
[1764314339485,4.74538445,3018.5,3018.4,0.001]
[1764314339858,4.74538445,3018.5,3018.3,0.001]
[1764314339859,3.8381,3018.3,3018.0,0.001]
[1764314340064,0.405504,3018.0,3017.9,0.001]
[1764314340269,2.22061494,3018.0,3017.9,0.001]
[1764314340480,1.84462083,3018.0,3017.9,0.001]
[1764314341476,6.21434817,3018.0,3017.9,0.001]
[1764314345192,6.34686735,3018.0,3017.9,0.001]
[1764314345391,7.856873,3018.0,3017.9,0.001]
[1764314346098,7.14206157,3018.0,3017.9,0.001]
[1764314349997,1.13109811,3017.9,3017.7,0.001]
[1764314350169,9.21709245,3017.7,3017.5,0.001]
[1764314350370,10.64777863,3017.7,3017.5,0.001]
[1764314350587,12.12691952,3017.7,3017.5,0.001]
[1764314351804,12.12645507,3017.7,3017.5,0.001]
[1764314352295,11.23590506,3017.7,3017.5,0.001]
[1764314352501,12.8951204,3017.7,3017.5,0.001]
[1764314354302,13.1041204,3017.7,3017.5,0.001]
[1764314356599,8.25708469,3017.7,3017.5,0.001]
[1764314356895,7.54477944,3017.7,3017.5,0.001]
[1764314357503,6.35279482,3017.7,3017.5,0.001]
[1764314357803,3.83179449,3017.7,3017.6,0.4649]
[1764314358002,4.5573886,3017.7,3017.6,0.4649]
[1764314359371,3.83179449,3017.7,3017.6,0.4649]
[1764314361176,3.83179449,3017.7,3017.6,0.9394]
[1764314361581,3.83179449,3017.7,3017.6,0.4649]
[1764314362005,4.16369449,3017.7,3017.6,0.001]
[1764314363278,4.16379488,3017.7,3017.6,0.001]
[1764314367012,4.63629488,3017.7,3017.6,0.001]
[1764314367213,5.34987627,3017.7,3017.6,0.001]
[1764314367801,5.76368131,3017.7,3017.6,0.001]
[1764314368113,6.23618131,3017.7,3017.6,0.001]
[1764314373188,5.76368131,3017.7,3017.6,0.001]
[1764314374028,5.43178131,3017.7,3017.6,0.9394]
[1764314374393,5.43178131,3017.7,3017.6,0.4649]
[1764314376021,5.76368131,3017.7,3017.6,0.001]
[1764314376521,5.43178131,3017.7,3017.6,0.001]
[1764314376944,5.43178131,3017.7,3017.6,0.4649]
[1764314377624,5.43378131,3017.7,3017.6,0.4649]
[1764314387130,6.32433132,3017.7,3017.6,0.4649]
[1764314387528,6.65623132,3017.7,3017.6,0.001]
[1764314398445,6.32433132,3017.7,3017.6,0.001]
[1764314400946,6.66063132,3017.7,3017.6,0.001]
[1764314402945,12.21424286,3017.7,3017.6,0.001]
[1764314403122,11.32369285,3017.7,3017.6,0.001]
[1764314403444,5.43378131,3017.7,3017.6,0.001]
[1764314403646,5.43378131,3017.7,3017.6,0.4987]
[1764314405411,5.93388131,3017.7,3017.6,0.4987]
[1764314406249,6.82961563,3017.7,3017.6,0.4987]
[1764314407220,1.52479426,3017.7,3017.6,0.4987]
[1764314407421,1.02469426,3017.7,3017.6,0.9978]
[1764314408920,1.02469426,3017.7,3017.6,0.001]
[1764314408921,10.10911214,3017.7,3017.6,0.001]
[1764314409252,7.91638908,3017.7,3017.6,0.001]
[1764314409552,9.71187182,3017.7,3017.6,0.001]
[1764314411741,14.46220274,3017.7,3017.6,0.001]
[1764314412357,20.84220274,3017.7,3017.6,0.001]
[1764314415756,16.09187182,3017.7,3017.6,0.001]
[1764314416058,15.78275895,3017.7,3017.6,0.001]
[1764314416228,16.09325083,3017.7,3017.6,0.001]
[1764314416556,17.28539893,3017.7,3017.6,0.001]
[1764314422963,22.03572985,3017.7,3017.6,0.001]
[1764314423430,17.28539893,3017.7,3017.6,0.001]
[1764314423830,22.03572985,3017.7,3017.6,0.001]
[1764314433948,20.84358175,3017.7,3017.6,0.001]
[1764314434673,1.13109811,3017.6,3017.5,0.001]
[1764314434872,6.15404896,3017.6,3017.5,0.001]
[1764314435282,6.28624725,3017.6,3017.5,0.001]
[1764314438184,6.28624725,3017.6,3017.4,0.001]
[1764314438478,11.05228896,3017.5,3017.4,0.001]
[1764314438648,13.11562241,3017.5,3017.4,0.001]
[1764314438845,13.24841726,3017.5,3017.4,0.001]
[1764314439047,19.13621726,3017.5,3017.4,0.001]
[1764314439482,19.62841726,3017.5,3017.4,0.001]
[1764314443184,19.6285368,3017.5,3017.4,0.001]
[1764314444266,21.41733236,3017.5,3017.4,0.001]
[1764314450089,21.41733236,3017.5,3017.3,0.001]
[1764314450090,1.13109811,3017.4,3017.3,0.001]
[1764314450393,8.97068342,3017.4,3017.3,0.001]
[1764314450698,9.10348267,3017.4,3017.3,0.4636]
[1764314451083,9.1032921,3017.4,3017.3,0.4636]
[1764314451590,10.8918509,3017.4,3017.3,0.4636]
[1764314453059,10.8918509,3017.4,3017.3,0.9558]
[1764314453988,17.2718509,3017.4,3017.3,0.4636]
[1764314455689,17.2718509,3017.4,3017.3,0.9558]
[1764314455991,11.90909609,3017.4,3017.3,0.9558]
[1764314456198,11.39250198,3017.4,3017.3,0.9558]
[1764314456397,12.28681968,3017.4,3017.3,0.9558]
[1764314459883,11.95613906,3017.4,3017.3,0.9558]
[1764314460083,11.06182136,3017.4,3017.3,0.9558]
[1764314460496,10.92902211,3017.4,3017.3,0.9558]
[1764314462607,3.83360336,3017.4,3017.3,0.9558]
[1764314462771,3.83560336,3017.4,3017.3,0.9558]
[1764314463609,0.31249188,3017.4,3017.3,0.9558]
[1764314464696,0.31249188,3017.4,3017.3,1.40093386]
[1764314469508,0.31249188,3017.4,3017.3,0.9558]
[1764314481118,0.31249188,3017.4,3017.3,0.4636]
[1764314481318,0.31249188,3017.4,3017.3,0.9456]
[1764314481694,0.31249188,3017.4,3017.3,0.4636]
[1764314481894,3.62660336,3017.4,3017.3,0.4636]
[1764314482306,3.62660336,3017.4,3017.3,0.9456]
[1764314482507,0.31249188,3017.4,3017.3,0.9456]
[1764314483541,3.62660336,3017.4,3017.3,0.4636]
[1764314483748,4.12610336,3017.4,3017.3,0.001]
[1764314483902,4.87031414,3017.4,3017.3,0.001]
[1764314484613,5.17861414,3017.4,3017.3,0.001]
[1764314485029,5.66161414,3017.4,3017.3,0.001]
[1764314487333,5.35331414,3017.4,3017.3,0.001]
[1764314491115,6.06859418,3017.4,3017.3,0.001]
[1764314493036,6.37689418,3017.4,3017.3,0.001]
[1764314494646,6.06859418,3017.4,3017.3,0.001]
[1764314495150,5.35331414,3017.4,3017.3,0.001]
[1764314495450,11.85244535,3017.4,3017.3,0.001]
[1764314495650,12.28312597,3017.4,3017.3,0.001]
[1764314496251,12.28317506,3017.4,3017.3,0.001]
[1764314499126,12.18317506,3017.4,3017.3,0.001]
[1764314500049,12.68867906,3017.4,3017.3,0.001]
[1764314500826,13.58280463,3017.4,3017.3,0.001]
[1764314502350,19.96280463,3017.4,3017.3,0.001]
[1764314504264,19.06867906,3017.4,3017.3,0.001]
[1764314508156,19.96280463,3017.4,3017.3,0.001]
[1764314512045,14.06833428,3017.4,3017.3,0.001]
[1764314512252,14.3990149,3017.4,3017.3,0.001]
[1764314512432,14.06833428,3017.4,3017.3,0.001]
[1764314512634,14.3990149,3017.4,3017.3,0.001]
[1764314514248,13.50488933,3017.4,3017.3,0.001]
[1764314514450,13.17420871,3017.4,3017.3,0.001]
[1764314515164,14.06814131,3017.4,3017.3,0.001]
[1764314517264,13.17420871,3017.4,3017.3,0.001]
[1764314519754,13.17420871,3017.4,3017.3,0.4809]
[1764314520642,12.67470871,3017.4,3017.3,0.4809]
[1764314520943,13.56898825,3017.4,3017.3,0.9387]
[1764314521150,12.09918336,3017.4,3017.3,0.9387]
[1764314521337,11.20490382,3017.4,3017.3,0.9387]
[1764314522373,11.20522924,3017.4,3017.3,0.9387]
[1764314525257,4.82522924,3017.4,3017.3,0.9387]
[1764314538288,4.82522924,3017.4,3017.3,0.4809]
[1764314538990,5.13692924,3017.4,3017.3,0.001]
[1764314542402,6.49802261,3017.4,3017.3,0.001]
[1764314542580,5.69142261,3017.4,3017.3,0.4513]
[1764314542779,4.82522924,3017.4,3017.3,0.4513]
[1764314543094,4.82522924,3017.4,3017.3,0.9358]
[1764314543593,5.63182924,3017.4,3017.3,0.001]
[1764314550371,5.13692924,3017.4,3017.3,0.001]
[1764314551405,5.63152924,3017.4,3017.3,0.001]
[1764314551607,6.63663585,3017.4,3017.3,0.001]
[1764314558406,6.96731647,3017.4,3017.3,0.001]
[1764314563418,6.63663585,3017.4,3017.3,0.001]
[1764314563790,5.83033585,3017.4,3017.3,0.001]
[1764314563991,5.83033585,3017.4,3017.3,0.4626]
[1764314566522,4.82522924,3017.4,3017.3,0.9592]
[1764314572906,4.82522924,3017.4,3017.3,0.4626]
[1764314573110,4.82522924,3017.4,3017.3,0.9592]
[1764314578028,4.82522924,3017.4,3017.3,0.4626]
[1764314579133,5.15862924,3017.4,3017.3,0.001]
[1764314579336,6.49649273,3017.4,3017.3,0.001]
[1764314579536,6.02699273,3017.4,3017.3,0.001]
[1764314581334,5.15862924,3017.4,3017.3,0.001]
[1764314581534,5.62812924,3017.4,3017.3,0.001]
[1764314583538,4.82522924,3017.4,3017.3,0.4626]
[1764314583839,4.82522924,3017.4,3017.3,0.9592]
[1764314584838,1.51111776,3017.4,3017.3,0.9592]
[1764314585132,1.02811776,3017.4,3017.3,0.9592]
[1764314585328,0.31249188,3017.4,3017.3,1.43641027]
[1764314586013,0.31249188,3017.4,3017.3,1.53641027]
[1764314586807,0.31249188,3017.4,3017.3,4.85063159]
[1764314588135,0.31249188,3017.4,3017.3,4.8837738]
[1764314590740,0.002,3017.4,3017.3,5.60936791]
[1764314590911,0.002,3017.4,3017.3,6.32736379]
[1764314591243,0.002,3017.7,3017.6,0.82559411]
[1764314591536,0.002,3017.7,3017.6,2.63541962]
[1764314591740,0.002,3017.7,3017.6,3.11791962]
[1764314591943,0.002,3017.7,3017.6,3.25061535]
[1764314592316,0.13469573,3018.7,3018.0,0.405504]
[1764314592317,0.002,3018.7,3018.0,0.405504]
[1764314592521,0.002,3018.7,3018.0,6.66062503]
[1764314592731,0.002,3018.7,3018.0,11.12264014]
[1764314593341,0.002,3018.7,3018.2,1.067104]
[1764314593518,0.002,3019.1,3019.0,5.98172503]
[1764314593719,3.31078246,3020.5,3019.0,5.98172503]
[1764314593720,0.13263742,3020.1,3019.5,0.1]
[1764314594032,0.30907319,3020.0,3019.9,4.75062692]
[1764314594239,4.24508943,3020.7,3020.1,0.4903]
[1764314594240,0.9946966,3020.5,3020.1,0.4903]
[1764314594413,0.30848596,3020.4,3020.1,0.4903]
[1764314594618,0.30848596,3020.3,3020.2,0.4614]
[1764314594819,3.30950489,3021.6,3020.4,0.4903]
[1764314595135,3.30950489,3021.6,3020.7,4.75062692]
[1764314595136,0.99440646,3021.3,3020.7,4.75062692]
[1764314595330,0.99440646,3021.3,3020.5,0.9517]
[1764314595331,0.99440646,3021.3,3020.5,6.69673338]
[1764314595534,0.99440646,3021.3,3021.2,0.4903]
[1764314595719,3.65922538,3021.6,3021.2,0.9517]
[1764314595925,1.30202611,3021.5,3021.2,0.9517]
[1764314596123,0.30761965,3021.4,3021.2,0.9517]
[1764314596344,0.1877,3021.7,3021.2,0.4903]
[1764314596519,0.99435372,3021.5,3021.2,0.4903]
[1764314596718,3.30972396,3021.4,3021.2,0.4903]
[1764314597149,3.30972396,3021.4,3021.3,0.4903]
[1764314597343,3.63996647,3021.8,3021.3,0.4903]
[1764314597644,0.4903,3021.5,3021.3,0.4903]
[1764314599045,3.79996497,3021.5,3021.3,0.4903]
[1764314599551,0.3447,3021.4,3021.1,0.6489]
[1764314599754,0.3447,3021.4,3020.9,0.1875]
[1764314600253,0.8013,3021.4,3020.9,0.6489]
[1764314600430,0.8013,3021.4,3020.6,0.4614]
[1764314600431,1.59239299,3021.4,3020.6,0.4614]
[1764314600630,0.4566,3021.3,3020.6,0.4614]
[1764314600849,6.61988612,3021.2,3020.6,0.4614]
[1764314601848,3.30994306,3021.2,3020.6,0.4614]
[1764314602053,3.30994306,3021.2,3021.1,0.4903]
[1764314602220,4.0719301,3021.2,3021.1,0.4903]
[1764314602425,4.0719301,3021.2,3020.8,0.4614]
[1764314602726,4.30438248,3021.2,3020.5,0.4614]
[1764314602937,7.61432554,3021.2,3020.5,0.4614]
[1764314603341,6.61988612,3021.2,3020.3,0.6489]
[1764314603554,1.45223942,3021.1,3020.4,0.4614]
[1764314603934,0.4578,3021.1,3020.4,0.4614]
[1764314604142,0.99443942,3021.0,3020.4,0.4614]
[1764314604727,4.30470984,3021.0,3020.4,0.4614]
[1764314604927,0.128,3020.9,3020.2,5.03105513]
[1764314605158,4.30470984,3021.0,3020.0,3.71673088]
[1764314605159,0.76146529,3021.0,3020.3,5.24513621]
[1764314605345,0.4578,3021.2,3020.8,0.4903]
[1764314605525,0.76146529,3021.0,3020.4,0.4614]
[1764314606241,1.21926529,3021.0,3020.4,0.4614]
[1764314606553,0.4578,3021.0,3020.4,0.4614]
[1764314606752,3.31027177,3020.9,3020.4,0.4614]
[1764314606966,0.9944625,3020.9,3020.4,0.4614]
[1764314607133,0.72559411,3020.9,3020.4,0.4614]
[1764314607325,0.4614,3020.9,3020.8,0.4903]
[1764314608250,0.4614,3020.9,3020.2,0.209]
[1764314608251,0.8061,3020.9,3020.2,0.209]
[1764314608430,0.4614,3020.9,3020.4,0.4614]
[1764314608623,3.31018904,3021.0,3020.8,0.4903]
[1764314608828,3.97221556,3021.0,3020.9,0.4903]
[1764314609448,4.46251556,3021.0,3020.9,0.4903]
[1764314610549,8.2574046,3021.0,3020.7,0.4614]
[1764314610753,8.2574046,3021.0,3020.2,0.6704]
[1764314610754,0.0032,3020.8,3020.2,0.6704]
[1764314610952,0.0032,3020.8,3020.3,0.4614]
[1764314611152,7.48700316,3020.8,3020.3,0.4614]
[1764314611459,7.94480316,3020.8,3020.3,0.4614]
[1764314611856,4.63442181,3020.8,3020.3,0.4614]
[1764314612164,7.94480316,3020.8,3020.3,0.4614]
[1764314614166,0.4903,3020.7,3020.3,0.4614]
[1764314615163,3.31060054,3020.6,3020.3,0.4614]
[1764314615766,0.4903,3020.5,3020.3,0.4614]
[1764314616548,0.4903,3020.5,3020.4,0.4903]
[1764314617272,0.79760243,3020.5,3020.4,0.4903]
[1764314617477,0.79760243,3020.5,3020.4,0.9517]
[1764314622967,0.79760243,3020.5,3020.4,1.1517]
[1764314624929,0.80053353,3020.5,3020.4,1.1517]
[1764314625058,1.09773353,3020.5,3020.4,0.2]
[1764314625789,0.80053353,3020.5,3020.4,1.1638]
[1764314626089,0.80053353,3020.5,3020.4,0.6685]
[1764314626899,4.40844367,3020.5,3020.4,0.2]
[1764314627085,6.39057471,3020.5,3020.4,0.2]
[1764314628305,5.89517471,3020.5,3020.4,0.2]
[1764314629204,1.51537086,3020.5,3020.4,0.6685]
[1764314629378,4.826081,3020.5,3020.4,0.6685]
[1764314629567,5.123281,3020.5,3020.4,0.2]
[1764314630599,5.125281,3020.5,3020.4,0.2]
[1764314631294,5.125281,3020.5,3020.1,0.4953]
[1764314631501,1.02507086,3020.4,3020.1,0.4953]